Workbook

Sheet 汇总
A1: 预算单
A2: 项目名称： 中国石油大学（北京）MBA办学15周年文艺晚会
A3: 项目地址：中油大厦三层 | F3: 策划执行单位：北京众石未来科技有限公司
A4: 进场时间：2024年11月29日 | F4: 联系人：吴天昊
A5: 活动时间：2024年11月30日 | F5: 联系方式：13810889432
A6: 序号 | B6: 项目名称 | C6: 位置 | D6: 内容描述 | E6: 尺寸 | F6: 数量 | G6: 天数 | H6: 单位 | I6: 北京众石未来科技有限公司
I7: 单价（元） | J7: 小计（元）
A8: 舞美制作部分
A9: 1 | B9: T型指引牌 | D9: 丽屏展架（内容：主会场左箭头1个） | E9: 尺寸：长0.8米高2米 | F9: 1 | G9: 1 | H9: 套 | I9: ￥400.00 | J9: =I9*G9*F9 -> ¥400
A10: 2 | B10: T型指引牌 | C10: 通道区 | D10: 丽屏展架（内容：主会场左箭头1个；右箭头1个） | E10: 尺寸：长0.8米高2米 | F10: 2 | G10: 1 | H10: 套 | I10: ￥400.00 | J10: ¥800
A11: 3 | B11: 签名合影背板 | C11: 序厅区 | D11: 桁架安装黑底宝丽布 | E11: 尺寸：长5米高2.4米厚0.6米 | F11: 15 | G11: 1 | H11: 平米 | I11: ￥100.00 | J11: ¥1,500
A12: 4 | B12: 签名合影背板射灯 | D12: LED | E12: LED | F12: 5 | G12: 1 | H12: 支 | I12: ￥80.00 | J12: ¥400
A13: 5 | B13: PVC麦标盒 | C13: 会务区 | D13: PVC麦标盒 | E13: 尺寸：长8厘米高6厘米 | F13: 4 | G13: 1 | H13: 个 | I13: ￥0.00 | J13: ¥0
A14: 6 | B14: 主持人手卡 | D14: 相纸/300克铜版纸 | E14: 尺寸：长15厘米高10厘米 | F14: 30 | G14: 1 | H14: 张 | I14: ￥0.00 | J14: ¥0
A15: 7 | B15: 流程单 | D15: A3对折打印 300克 | E15: 尺寸：A3 | F15: 50 | G15: 1 | H15: 份 | I15: ￥15.00 | J15: ¥750
A16: 8 | B16: 椅背贴 | D16: 可移除车贴 | E16: 尺寸：长20厘米高10厘米 | F16: 20 | G16: 1 | H16: 套 | I16: ￥15.00 | J16: ¥300
A17: 合计 | J17: =SUM(J9:J16) -> ¥4,150
A18: LED视频设备部分（使用场地LED屏幕）
A19: 1 | B19: 多功能视屏控台 | D19: NOVASTAR -C1 | E19: 控制场地屏幕 | F19: 1 | G19: 1 | H19: 台 | I19: ￥2,500.00 | J19: =I19*G19*F19 -> ¥2,500
A20: 2 | B20: 多功能视屏服务器 | D20: NOVASTAR -N9 | E20: 8通道拼接服务器采集多路信号 | F20: 1 | G20: 1 | H20: 台 | I20: ￥1,000.00 | J20: =I20*G20*F20 -> ¥1,000
A21: 3 | B21: 多功能媒体播放器 | D21: Hirender-S3 | E21: 工程文件服务器播控/一主一备 | F21: 2 | G21: 1 | H21: 台 | I21: ￥2,000.00 | J21: =I21*G21*F21 -> ¥4,000
A22: 4 | B22: 监视器 | D22: 27寸 | E22: 预览 | F22: 2 | G22: 1 | H22: 台 | I22: ￥0.00 | J22: =I22*G22*F22 -> ¥0
A23: 合计 | J23: =SUM(J19:J22) -> ¥7,500
A24: AV灯光设备部分
A25: 1 | B25: LED染色灯 | C25: 顶部吊杆 | D25: ACME | E25: ACME543 | F25: 20 | G25: 1 | H25: 台 | I25: ￥100.00 | J25: =I25*G25*F25 -> ¥2,000
A26: 2 | B26: 电脑光束图案灯 | C26: 顶部吊杆 | D26: ACME | E26: ACME380 | F26: 20 | G26: 1 | H26: 台 | I26: ￥300.00 | J26: =I26*G26*F26 -> ¥6,000
A27: 3 | B27: 电脑光束图案灯 | C27: LED两侧 | D27: ACME | E27: ACME380 | F27: 8 | G27: 1 | H27: 台 | I27: ￥300.00 | J27: ¥2,400
A28: 4 | B28: 电脑光束图案灯 | C28: LED下方 | D28: ACME | E28: ACME380 | F28: 10 | G28: 1 | H28: 台 | I28: ￥300.00 | J28: ¥3,000
A29: 5 | B29: 电脑切割面光灯 | C29: 面光龙门 | D29: CKC | E29: CKC-p10 | F29: 8 | G29: 1 | H29: 台 | I29: ￥500.00 | J29: ¥4,000
A30: 6 | B30: 电脑切割定点灯 | C30: 顶部吊杆 | D30: CKC | E30: CKC-p10 | F30: 2 | G30: 1 | H30: 台 | I30: ￥500.00 | J30: ¥1,000
A31: 7 | B31: TRUSS灯架 | C31: 面光龙门 | D31: 长8米高5米 | E31: 300*400 | F31: 18 | G31: 1 | H31: 延米 | I31: ￥100.00 | J31: ¥1,800
A32: 8 | B32: TRUSS灯架立柱 | C32: LED两侧 | D32: 高5米*2根 | E32: 300*400 | F32: 10 | G32: 1 | H32: 延米 | I32: ￥100.00 | J32: =I32*G32*F32 -> ¥1,000
A33: 9 | B33: 灯光控制台 | D33: 控台区 | E33: MA 2 | F33: 1 | G33: 1 | H33: 台 | I33: ￥1,500.00 | J33: ¥1,500
A34: 10 | B34: 灯光柜 | D34: 舞台区 | E34: 灯光电源接口箱 | F34: 2 | G34: 1 | H34: 台 | I34: ￥0.00 | J34: ¥0
A35: 11 | B35: 特效雾机 | D35: 特效雾机 | E35: 特效雾机 | F35: 2 | G35: 1 | H35: 台 | I35: ￥300.00 | J35: ¥600
A36: 12 | B36: 线槽板 | D36: 序厅及主厅 | E36: 序厅及主厅 | F36: 20 | G36: 1 | H36: 块 | I36: ￥0.00 | J36: ¥0
A37: 合计 | J37: =SUM(J25:J36) -> ¥23,300
A38: AV音响设备部分
A39: 1 | B39: 线阵列全频音箱 | C39: 主会场 | D39: ZSOUND | E39: ZSOUND VCM | F39: 8 | G39: 1 | H39: 支 | I39: ￥600.00 | J39: =I39*G39*F39 -> ¥4,800
A40: 2 | B40: 线阵列超低音箱 | D40: ZSOUND | E40: ZSOUND VCS | F40: 4 | G40: 1 | H40: 支 | I40: ￥600.00 | J40: ¥2,400
A41: 3 | B41: 线阵列返送音箱 | D41: ZSOUND M15 | E41: ZSOUND M15 | F41: 4 | G41: 1 | H41: 支 | I41: ￥600.00 | J41: ¥2,400
A42: 4 | B42: 线阵列音箱数字处理器 | D42: ZSOUND M44 | E42: ZSOUND M44 | F42: 2 | G42: 1 | H42: 台 | I42: ￥200.00 | J42: ¥400
A43: 5 | B43: 线阵列功率放大器 | D43: ZSOUND MA1300Q | E43: ZSOUND MA1300Q | F43: 2 | G43: 1 | H43: 台 | I43: ￥0.00 | J43: ¥0
A44: 6 | B44: 数字32路调音台 | D44: MLDAS | E44: MLDAS M32 | F44: 1 | G44: 1 | H44: 台 | I44: ￥2,000.00 | J44: ¥2,000
A45: 7 | B45: 无线手持话筒 | D45: SHUERDSLX58 | E45: SHUERDSLX58 | F45: 6 | G45: 1 | H45: 支 | I45: ￥200.00 | J45: ¥1,200
A46: 8 | B46: 鹅颈麦克风 | D46: SHURE | E46: SHURE 418 GOOSENECK | F46: 2 | G46: 1 | H46: 支 | I46: ￥200.00 | J46: ¥400
A47: 9 | B47: 电熔麦克风 | D47: 纽曼184 | E47: 纽曼184 | F47: 6 | G47: 1 | H47: 支 | I47: ￥200.00 | J47: ¥1,200
A48: 合计 | J48: =SUM(J39:J47) -> ¥14,800
A49: 影像直播部分
A50: 1 | B50: 云摄影机位 | C50: 翠宫内场 | D50: 15年以上资深摄影师 | E50: /专业相机/大三元镜头/含摄影师 | F50: 1 | G50: 1 | H50: 机位 | I50: ￥2,500.00 | J50: =I50*F50 -> ¥2,500
A51: 2 | D51: 云直播相册系统 | E51: 云直播相册系统 | F51: 1 | G51: 1 | H51: 项 | I51: ￥1,000.00 | J51: ¥1,000
A52: 3 | D52: 修图师精修 | E52: 修图师精修 | F52: 1 | G52: 1 | H52: 人 | I52: ￥0.00 | J52: ¥0
A53: 4 | B53: 特种拍摄机位 | D53: 移动花絮机位设备 | E53: 大疆+索尼A7系列 | F53: 1 | G53: 1 | H53: 人 | I53: ￥1,000.00 | J53: ¥1,000
A54: 5 | B54: 花絮机位拍摄师 | D54: 花絮机位拍摄师 | E54: 专业摄像师 | F54: 1 | G54: 1 | H54: 人 | I54: ￥2,000.00 | J54: ¥2,000
A55: 6 | B55: 剪辑包装 | D55: 花絮剪辑 | E55: 晚会花絮剪辑 | F55: 1 | G55: 1 | H55: 条 | I55: ￥1,500.00 | J55: ¥1,500
A56: 合计 | J56: =SUM(J50:J55) -> ¥8,000
A57: 执行策划团队部分
A58: 1 | B58: 总控导演 | C58: 主会场 | D58: 负责环节流程总控及对接 | E58: 8年以上行业经验 | F58: 1 | G58: 1 | H58: 人次 | I58: ￥0.00 | J58: =I58*G58*F58 -> ¥0
A59: 2 | B59: 执行导演 | D59: 负责环节流程配合管理对接 | E59: 8年以上行业经验 | F59: 2 | G59: 1 | H59: 人次 | I59: ￥0.00 | J59: ¥0
A60: 3 | B60: 视频总监 | D60: 视频控台全流程管理 | E60: 15年以上行业经验 | F60: 1 | G60: 1 | H60: 人次 | I60: ￥800.00 | J60: ¥800
A61: 4 | B61: 视频技术经理 | D61: 视频设备控制包含彩排 | E61: 10年以上行业经验 | F61: 1 | G61: 1 | H61: 人次 | I61: ￥0.00 | J61: ¥0
A62: 5 | B62: 灯光总监 | D62: 灯光设备变成及全流程效果管理 | E62: 15年以上行业经验 | F62: 1 | G62: 1 | H62: 人次 | I62: ￥800.00 | J62: ¥800
A63: 6 | B63: 音频总监 | D63: 音频设备控制包含彩排 | E63: 15年以上行业经验 | F63: 1 | G63: 1 | H63: 人次 | I63: ￥800.00 | J63: ¥800
A64: 7 | B64: 音频技术经理 | D64: 负责后台麦克风管理及设备配合 | E64: 6年以上行业经验 | F64: 1 | G64: 1 | H64: 人次 | I64: ￥500.00 | J64: ¥500
A65: 8 | B65: 平面设计 | D65: 包含主视觉及延展物料设计，屏幕上环节画面设计等 | F65: 1 | G65: 1 | H65: 项 | I65: ￥3,000.00 | J65: ¥3,000
A66: 合计 | J66: =SUM(J58:J65) -> ¥5,900
A67: 施工搭建部分
A68: 1 | B68: 施工搭建 | D68: 搭建一天/撤场一天 | E68: 搭建一天/撤场一天 | F68: 8 | G68: 2 | H68: 工次 | I68: ￥300.00 | J68: =I68*G68*F68 -> ¥4,800
A69: 2 | B69: 施工运输 | D69: 搭建及撤场 | E69: 搭建及撤场 | F69: 2 | G69: 2 | H69: 车次 | I69: ￥800.00 | J69: =I69*G69*F69 -> ¥3,200
A70: 合计 | J70: =SUM(J68:J69) -> ¥8,000
A71: 合计 （不含税） | J71: =J70+J66+J48+J37+J23+J17+J56 -> ¥71,650
A72: 服务费5% （赠送） | J72: =J71*0 -> ¥0.00
A73: 税金3%（增值税普通发票） | J73: =(J71+J72)*0.03 -> ¥2,149.50
A74: 含税总计 | J74: =SUM(J71:J73) -> ¥73,799.50
A75: 预算单
A76: 项目名称：梦溪论坛
A77: 项目地址：翠宫 | F77: 策划执行单位：北京众石未来科技有限公司
A78: 进场时间：2024年11月29日 | F78: 联系人：吴天昊
A79: 活动时间：2024年11月30日 | F79: 联系方式：13810889432
A80: 序号 | B80: 项目名称 | C80: 位置 | D80: 内容描述 | E80: 尺寸 | F80: 数量 | G80: 天数 | H80: 单位 | I80: 北京众石未来科技有限公司
I81: 单价（元） | J81: 小计（元）
A82: 舞美制作部分
A83: 1 | B83: 5米道旗 | D83: 5米道旗 | E83: 尺寸：长1.3米高3.5米 | F83: 10 | G83: 1 | H83: 套 | I83: ￥450.00 | J83: =I83*G83*F83 -> ￥4,500.00
A84: 2 | B84: 梦溪论坛合影背板 | C84: 翠宫内场 | D84: 桁架结构UV精喷黑底宝丽布 | E84: 尺寸：长5米高3米厚度0.6米 | F84: 18 | G84: 1 | H84: 平米 | I84: ￥100.00 | J84: =I84*G84*F84 -> ￥1,800.00
A85: 3 | B85: 签名合影背板射灯 | D85: LED | E85: LED | F85: 5 | G85: 1 | H85: 支 | I85: ￥80.00 | J85: =I85*G85*F85 -> ¥400
A86: 4 | B86: 异型合影牌 | D86: KT板 | E86: 如方案 | F86: 8 | G86: 1 | H86: 块 | I86: ￥80.00 | J86: =I86*G86*F86 -> ¥640
A87: 5 | B87: 翠宫大堂指引 | D87: 丽屏展架（2层主会场指引） | E87: 尺寸：长0.8米高2米 | F87: 1 | G87: 1 | H87: 套 | I87: ￥350.00 | J87: =I87*G87*F87 -> ￥350.00
A88: 6 | B88: 议程单 | D88: A3对折打印 300克 | E88: 尺寸：A3 | F88: 50 | G88: 1 | H88: 份 | I88: ￥15.00 | J88: =I88*G88*F88 -> ¥750
A89: 7 | B89: 嘉宾台卡 | D89: 亚克力 | E89: 尺寸：长20厘米高10厘米 | F89: 30 | G89: 1 | H89: 套 | I89: ￥15.00 | J89: =I89*G89*F89 -> ¥450
A90: 合计 | J90: =SUM(J83:J89) -> ¥8,890
A91: LED视频设备部分
A92: 1 | B92: 多功能视屏控台 | C92: 翠宫内场 | D92: NOVASTAR -C1 | E92: 多通道拼接多窗口编程 | F92: 1 | G92: 1 | H92: 台 | I92: ￥2,500.00 | J92: =I92*G92*F92 -> ¥2,500
A93: 2 | B93: 多功能视屏服务器 | D93: NOVASTAR -N9 | E93: 8通道拼接服务器采集多路信号 | F93: 1 | G93: 1 | H93: 台 | I93: ￥1,000.00 | J93: ¥1,000
A94: 3 | B94: 多功能媒体播放器 | D94: Hirender-S3 | E94: 工程文件服务器播控/一主一备 | F94: 1 | G94: 1 | H94: 台 | I94: ￥2,000.00 | J94: ¥2,000
A95: 4 | B95: LED处理器 | D95: 迈普视通-550 | E95: LED处理器 | F95: 2 | G95: 1 | H95: 台 | I95: ￥500.00 | J95: ¥1,000
A96: 5 | B96: 视频切换器（无缝） | D96: ESSIC | E96: 视频切换器（无缝） | F96: 1 | G96: 1 | H96: 台 | I96: ￥0.00 | J96: ¥0
A97: 6 | B97: CUE翻页器 | D97: CUE | E97: CUE | F97: 1 | G97: 1 | H97: 台 | I97: ￥500.00 | J97: ¥500
A98: 7 | B98: 监视器 | D98: 27寸 | E98: 预览 | F98: 2 | G98: 1 | H98: 台 | I98: ￥0.00 | J98: ¥0
A99: 合计 | J99: =SUM(J92:J98) -> ¥7,000
A100: AV音响控制设备部分
A101: 1 | B101: 数字32路调音台 | C101: 翠宫内场 | D101: MLDAS | E101: MLDAS M32 | F101: 1 | G101: 1 | H101: 台 | I101: ￥2,000.00 | J101: =I101*G101*F101 -> ¥2,000
A102: 2 | B102: 无线手持话筒 | D102: SHUERDSLX58 | E102: SHUERDSLX58 | F102: 6 | G102: 1 | H102: 支 | I102: ￥200.00 | J102: ¥1,200
A103: 3 | B103: 鹅颈麦克风 | D103: SHURE | E103: SHURE 418 GOOSENECK | F103: 2 | G103: 1 | H103: 支 | I103: ￥200.00 | J103: ¥400
A104: 合计 | J104: =SUM(J101:J103) -> ¥3,600
A105: 影像直播部分
A106: 1 | B106: 云摄影机位 | C106: 翠宫内场 | D106: 15年以上资深摄影师 | E106: /专业相机/大三元镜头/含摄影师 | F106: 1 | G106: 1 | H106: 机位 | I106: ￥0.00 | J106: =I106*F106 -> ¥0
A107: 2 | D107: 云直播相册系统 | E107: 云直播相册系统 | F107: 1 | G107: 1 | H107: 项 | I107: ￥0.00 | J107: ¥0
A108: 3 | D108: 修图师精修 | E108: 修图师精修 | F108: 1 | G108: 1 | H108: 人 | I108: ￥0.00 | J108: ¥0
A109: 4 | B109: 特种拍摄机位 | D109: 移动花絮机位设备 | E109: 大疆+索尼A7系列 | F109: 1 | G109: 1 | H109: 人 | I109: ￥0.00 | J109: ¥0
A110: 5 | B110: 花絮机位拍摄师 | D110: 花絮机位拍摄师 | E110: 专业摄像师 | F110: 1 | G110: 1 | H110: 人 | I110: ￥0.00 | J110: ¥0
A111: 6 | B111: 剪辑包装 | D111: 花絮剪辑 | E111: 晚会花絮剪辑 | F111: 1 | G111: 1 | H111: 条 | I111: ￥1,500.00 | J111: ¥1,500
A112: 合计 | J112: =SUM(J106:J111) -> ¥1,500
A113: 执行策划团队部分
A114: 1 | B114: 总控导演 | C114: 翠宫内场 | D114: 负责环节流程总控及对接 | E114: 8年以上行业经验 | F114: 1 | G114: 1 | H114: 人次 | I114: ￥0.00 | J114: =I114*G114*F114 -> ¥0
A115: 2 | B115: 执行导演 | D115: 负责环节流程配合管理对接 | E115: 8年以上行业经验 | F115: 1 | G115: 1 | H115: 人次 | I115: ￥0.00 | J115: ¥0
A116: 3 | B116: 视频总监 | D116: 视频控台全流程管理 | E116: 15年以上行业经验 | F116: 1 | G116: 1 | H116: 人次 | I116: ￥800.00 | J116: ¥800
A117: 4 | B117: 视频技术经理 | D117: 视频设备控制包含彩排 | E117: 10年以上行业经验 | F117: 1 | G117: 1 | H117: 人次 | I117: ￥0.00 | J117: ¥0
A118: 5 | B118: 音频总监 | D118: 音频设备控制包含彩排 | E118: 15年以上行业经验 | F118: 1 | G118: 1 | H118: 人次 | I118: ￥800.00 | J118: ¥800
A119: 6 | B119: 音频技术经理 | D119: 负责后台麦克风管理及设备配合 | E119: 6年以上行业经验 | F119: 1 | G119: 1 | H119: 人次 | I119: ￥0.00 | J119: ¥0
A120: 7 | B120: 平面设计 | D120: 包含主视觉及延展物料设计，屏幕上环节画面设计等 | F120: 1 | G120: 1 | H120: 项 | I120: ￥3,000.00 | J120: ¥3,000
A121: 合计 | J121: =SUM(J114:J120) -> ¥4,600
A122: 施工搭建部分
A123: 1 | B123: 施工搭建 | D123: 搭建一天/撤场一天 | E123: 搭建一天/撤场一天 | F123: 4 | G123: 2 | H123: 工次 | I123: ￥300.00 | J123: =I123*G123*F123 -> ¥2,400
A124: 2 | B124: 施工运输 | D124: 搭建及撤场 | E124: 搭建及撤场 | F124: 2 | G124: 2 | H124: 车次 | I124: ￥800.00 | J124: =I124*G124*F124 -> ¥3,200
A125: 合计 | J125: =SUM(J123:J124) -> ¥5,600
A126: 合计 （不含税） | J126: =J125+J121+J112+J104+J99+J90 -> ¥31,190
A127: 服务费5% （赠送） | J127: =J126*0 -> ¥0.00
A128: 税金3%（增值税普通发票） | J128: =(J126+J127)*0.03 -> ¥935.70
A129: 含税总计 | J129: =SUM(J126:J128) -> ¥32,125.70
A130: 梦溪论坛+文艺晚会汇总总计 | J130: =J129+J74 -> ¥105,925.20
A131: 梦溪论坛+文艺晚会汇总总计 （最后汇总优惠） | J131: ¥95,000.00
